[Event "Live Chess"]
[Site "Chess.com"]
[Date "2023.05.21"]
[Round "-"]
[White "DoYouLikeCurry"]
[Black "domrobson"]
[Result "1-0"]
[WhiteElo "1391"]
[BlackElo "1703"]
[TimeControl "300"]
[EndTime "2:36:39 PDT"]
[Termination "DoYouLikeCurry won by resignation"]

1. e4 {[%clk 0:04:58]} 1... e5 {[%clk 0:04:59.4]} 2. Nc3 {[%clk 0:04:56.3]} 2...
Nf6 {[%clk 0:04:58.9]} 3. f4 {[%clk 0:04:55.1]} 3... Nc6 {[%clk 0:04:58.2]} 4.
fxe5 {[%clk 0:04:51.2]} 4... Nxe5 {[%clk 0:04:57]} 5. d4 {[%clk 0:04:50.8]} 5...
Ng6 {[%clk 0:04:51.9]} 6. e5 {[%clk 0:04:49.4]} 6... Ng8 {[%clk 0:04:49.8]} 7.
Nf3 {[%clk 0:04:45.9]} 7... d6 {[%clk 0:04:48.7]} 8. Bc4 {[%clk 0:04:30.9]} 8...
dxe5 {[%clk 0:04:44.1]} 9. Qe2 {[%clk 0:04:28.8]} 9... Qe7 {[%clk 0:04:38.8]}
10. Nd5 {[%clk 0:04:25.3]} 10... Qd8 {[%clk 0:04:31.5]} 11. Nxe5 {[%clk
0:04:11.8]} 11... Be6 {[%clk 0:04:27.6]} 12. O-O {[%clk 0:04:03.9]} 12... Nxe5
{[%clk 0:04:23.9]} 13. Qxe5 {[%clk 0:03:58.5]} 13... Nf6 {[%clk 0:04:08.9]} 14.
Nxc7+ {[%clk 0:03:48.6]} 1-0

[Event "Live Chess"]
[Site "Chess.com"]
[Date "2023.05.21"]
[Round "-"]
[White "Tech_Titan"]
[Black "smoggyrabbit"]
[Result "0-1"]
[WhiteElo "1139"]
[BlackElo "1702"]
[TimeControl "300"]
[EndTime "2:36:44 PDT"]
[Termination "smoggyrabbit won by resignation"]

1. c4 {[%clk 0:04:58.1]} 1... e6 {[%clk 0:04:58.4]} 2. Nc3 {[%clk 0:04:57.1]}
2... f5 {[%clk 0:04:57.4]} 3. d4 {[%clk 0:04:55]} 3... Nf6 {[%clk 0:04:55.9]} 4.
Nf3 {[%clk 0:04:49.3]} 4... Bb4 {[%clk 0:04:53.7]} 5. Bd2 {[%clk 0:04:46]} 5...
O-O {[%clk 0:04:51]} 6. e3 {[%clk 0:04:44.3]} 6... b6 {[%clk 0:04:49.7]} 7. Bd3
{[%clk 0:04:43.1]} 7... Bb7 {[%clk 0:04:48.6]} 8. O-O {[%clk 0:04:41.4]} 8... d6
{[%clk 0:04:39.4]} 9. a3 {[%clk 0:04:40.2]} 9... Bxc3 {[%clk 0:04:38.1]} 10.
Bxc3 {[%clk 0:04:38.4]} 10... Nbd7 {[%clk 0:04:36.6]} 11. b4 {[%clk 0:04:37.2]}
11... Ne4 {[%clk 0:04:31.1]} 12. Bxe4 {[%clk 0:04:20.2]} 12... Bxe4 {[%clk
0:04:19.7]} 13. h3 {[%clk 0:03:57.8]} 13... Qe8 {[%clk 0:04:10.8]} 14. Re1
{[%clk 0:03:56.7]} 14... Qh5 {[%clk 0:03:58.5]} 15. Nd2 {[%clk 0:03:49.4]} 15...
Qxd1 {[%clk 0:03:50.5]} 16. Rexd1 {[%clk 0:03:49.3]} 16... Nf6 {[%clk
0:03:46.9]} 17. Nxe4 {[%clk 0:03:47.8]} 17... Nxe4 {[%clk 0:03:46.4]} 18. Rac1
{[%clk 0:03:40.8]} 18... Rad8 {[%clk 0:03:28.4]} 19. f3 {[%clk 0:03:19.6]} 19...
Nxc3 {[%clk 0:03:08.6]} 20. Rxc3 {[%clk 0:03:19.5]} 20... Kf7 {[%clk 0:02:43.6]}
21. Kf2 {[%clk 0:03:17]} 21... Ke7 {[%clk 0:02:39.7]} 22. Ke2 {[%clk 0:03:10.5]}
22... e5 {[%clk 0:02:38.1]} 23. dxe5 {[%clk 0:02:58]} 23... dxe5 {[%clk
0:02:36.8]} 24. Rxd8 {[%clk 0:02:55.1]} 24... Rxd8 {[%clk 0:02:35.8]} 25. Rd3
{[%clk 0:02:51.3]} 25... Rxd3 {[%clk 0:02:28.3]} 26. Kxd3 {[%clk 0:02:50.3]}
26... Kd6 {[%clk 0:02:27.1]} 27. e4 {[%clk 0:02:47]} 27... f4 {[%clk 0:02:19.6]}
28. Kc3 {[%clk 0:02:44]} 28... c6 {[%clk 0:02:01.7]} 29. Kd3 {[%clk 0:02:38.1]}
29... a6 {[%clk 0:01:50]} 30. Kc3 {[%clk 0:02:30.1]} 30... c5 {[%clk 0:01:41.9]}
31. bxc5+ {[%clk 0:02:27.3]} 31... Kxc5 {[%clk 0:01:40.2]} 32. Kd3 {[%clk
0:02:25.6]} 32... b5 {[%clk 0:01:22.9]} 33. cxb5 {[%clk 0:02:20.1]} 33... Kxb5
{[%clk 0:01:19.7]} 34. Kc3 {[%clk 0:02:19.6]} 34... Ka4 {[%clk 0:01:18.3]} 35.
Kb2 {[%clk 0:02:17.5]} 35... Kb5 {[%clk 0:01:13.1]} 36. Kb3 {[%clk 0:02:16.6]}
36... a5 {[%clk 0:01:12]} 37. a4+ {[%clk 0:02:15.7]} 37... Kc5 {[%clk
0:01:10.6]} 38. Kc3 {[%clk 0:02:10.4]} 38... h6 {[%clk 0:01:00.1]} 39. Kb3
{[%clk 0:02:07.3]} 39... Kd4 {[%clk 0:00:58.2]} 40. Kc2 {[%clk 0:02:05.8]} 40...
Ke3 {[%clk 0:00:56.5]} 41. Kc3 {[%clk 0:02:02.7]} 41... Kf2 {[%clk 0:00:55.5]}
42. Kc4 {[%clk 0:02:01.9]} 42... Kxg2 {[%clk 0:00:54.7]} 43. Kb5 {[%clk
0:02:01.4]} 43... Kxf3 {[%clk 0:00:53.9]} 44. Kxa5 {[%clk 0:02:00.7]} 44... Kg3
{[%clk 0:00:48.7]} 45. Kb5 {[%clk 0:01:59.6]} 45... f3 {[%clk 0:00:47.9]} 46. a5
{[%clk 0:01:58.9]} 46... f2 {[%clk 0:00:47.2]} 47. a6 {[%clk 0:01:58.2]} 47...
f1=Q+ {[%clk 0:00:46.3]} 48. Kb6 {[%clk 0:01:56.2]} 48... Qb1+ {[%clk
0:00:44.2]} 49. Kc7 {[%clk 0:01:54.1]} 49... Qa2 {[%clk 0:00:41.9]} 50. Kb7
{[%clk 0:01:52.8]} 50... Qb3+ {[%clk 0:00:41.1]} 51. Ka8 {[%clk 0:01:47.9]}
51... Qb6 {[%clk 0:00:19.9]} 52. a7 {[%clk 0:01:45.9]} 52... Qxa7+ {[%clk
0:00:19]} 53. Kxa7 {[%clk 0:01:44.7]} 53... Kf4 {[%clk 0:00:18.6]} 54. Kb6
{[%clk 0:01:43.1]} 54... Kxe4 {[%clk 0:00:18.5]} 55. Kc6 {[%clk 0:01:42.1]}
55... Kd3 {[%clk 0:00:18.4]} 56. Kd6 {[%clk 0:01:41.7]} 56... e4 {[%clk
0:00:18.3]} 57. Ke6 {[%clk 0:01:39.7]} 57... e3 {[%clk 0:00:18.2]} 58. Kf7
{[%clk 0:01:39.3]} 58... e2 {[%clk 0:00:17.9]} 59. Kxg7 {[%clk 0:01:38.8]} 59...
e1=Q {[%clk 0:00:17.7]} 60. Kxh6 {[%clk 0:01:38.2]} 60... Qg3 {[%clk 0:00:17]}
61. Kh5 {[%clk 0:01:35.1]} 61... Ke4 {[%clk 0:00:16.9]} 62. h4 {[%clk
0:01:32.3]} 62... Kf5 {[%clk 0:00:16.8]} 0-1

[Event "Live Chess"]
[Site "Chess.com"]
[Date "2023.05.21"]
[Round "-"]
[White "Singapourfeuj"]
[Black "Mugzwang"]
[Result "1-0"]
[WhiteElo "2193"]
[BlackElo "1539"]
[TimeControl "300"]
[EndTime "2:36:50 PDT"]
[Termination "Singapourfeuj won by resignation"]

1. d4 {[%clk 0:04:59.2]} 1... d5 {[%clk 0:04:58.6]} 2. c4 {[%clk 0:04:57.9]}
2... e6 {[%clk 0:04:57.4]} 3. Nf3 {[%clk 0:04:56.4]} 3... Nf6 {[%clk 0:04:56.7]}
4. Nc3 {[%clk 0:04:55.5]} 4... c6 {[%clk 0:04:49.8]} 5. Bg5 {[%clk 0:04:53.8]}
5... Nbd7 {[%clk 0:04:48.4]} 6. cxd5 {[%clk 0:04:51.8]} 6... cxd5 {[%clk
0:04:46.4]} 7. e3 {[%clk 0:04:48.2]} 7... a6 {[%clk 0:04:45.6]} 8. Bd3 {[%clk
0:04:46]} 8... Be7 {[%clk 0:04:43.9]} 9. O-O {[%clk 0:04:43.2]} 9... h6 {[%clk
0:04:43]} 10. Bf4 {[%clk 0:04:41.7]} 10... O-O {[%clk 0:04:41.8]} 11. Rc1 {[%clk
0:04:40.3]} 11... Nb6 {[%clk 0:04:37.4]} 12. Ne2 {[%clk 0:04:36.7]} 12... Bd6
{[%clk 0:04:35.4]} 13. Ne5 {[%clk 0:04:35.1]} 13... Qe7 {[%clk 0:04:23.8]} 14.
a4 {[%clk 0:04:29.1]} 14... Nbd7 {[%clk 0:04:19.7]} 15. Nxd7 {[%clk 0:04:26.4]}
15... Bxd7 {[%clk 0:04:16.2]} 16. Bxd6 {[%clk 0:04:24.7]} 16... Qxd6 {[%clk
0:04:14.8]} 17. Qb3 {[%clk 0:04:22.9]} 17... Bc6 {[%clk 0:04:03.9]} 18. a5
{[%clk 0:04:18.3]} 18... Rfc8 {[%clk 0:04:00.1]} 19. Rc3 {[%clk 0:04:15.1]}
19... Qd7 {[%clk 0:03:58.9]} 20. Rfc1 {[%clk 0:04:13]} 20... Ne4 {[%clk
0:03:46.3]} 21. Bxe4 {[%clk 0:04:08.4]} 21... dxe4 {[%clk 0:03:44.8]} 22. Qb6
{[%clk 0:04:02.9]} 22... Bb5 {[%clk 0:03:32.9]} 23. Ng3 {[%clk 0:03:59.3]} 23...
f5 {[%clk 0:03:12]} 24. h4 {[%clk 0:03:56.1]} 24... Rxc3 {[%clk 0:03:03.3]} 25.
Rxc3 {[%clk 0:03:53.3]} 25... Rc8 {[%clk 0:03:02.4]} 26. Rc5 {[%clk 0:03:41.9]}
26... Rxc5 {[%clk 0:02:57.6]} 27. Qxc5 {[%clk 0:03:40.7]} 27... Qc6 {[%clk
0:02:52.6]} 28. b4 {[%clk 0:03:38.6]} 28... Qxc5 {[%clk 0:02:46.1]} 29. dxc5
{[%clk 0:03:37.3]} 29... Kf7 {[%clk 0:02:41.2]} 30. f4 {[%clk 0:03:36]} 30... g6
{[%clk 0:02:33.5]} 31. Kf2 {[%clk 0:03:34.1]} 31... Bc4 {[%clk 0:02:24.5]} 32.
Ke1 {[%clk 0:03:31.7]} 32... Bd3 {[%clk 0:02:18.2]} 33. Kd2 {[%clk 0:03:30.7]}
33... Bb5 {[%clk 0:02:14.9]} 34. Kc3 {[%clk 0:03:29.7]} 34... Bc6 {[%clk
0:02:10.4]} 35. Kd4 {[%clk 0:03:28.7]} 35... Kf6 {[%clk 0:02:08.6]} 36. Ne2
{[%clk 0:03:19.7]} 36... Bb5 {[%clk 0:02:04.6]} 37. Nc3 {[%clk 0:03:18.2]} 37...
Bf1 {[%clk 0:02:00.3]} 38. g3 {[%clk 0:03:17.3]} 38... g5 {[%clk 0:01:47.2]} 39.
Na4 {[%clk 0:03:13.6]} 39... gxh4 {[%clk 0:01:40.4]} 40. gxh4 {[%clk 0:03:12.6]}
40... Bb5 {[%clk 0:01:34.7]} 41. Nb6 {[%clk 0:03:10.6]} 41... Bc6 {[%clk
0:01:27.8]} 42. Nc8 {[%clk 0:03:06.9]} 42... Kf7 {[%clk 0:01:22.9]} 43. h5
{[%clk 0:03:04.1]} 43... Kf6 {[%clk 0:01:19.1]} 44. Nd6 {[%clk 0:03:02.7]} 44...
Ke7 {[%clk 0:01:12.3]} 45. Ke5 {[%clk 0:03:01.5]} 45... Be8 {[%clk 0:01:06.9]}
46. Nxe8 {[%clk 0:02:59.1]} 46... Kxe8 {[%clk 0:01:06.2]} 47. Kxe6 {[%clk
0:02:58.3]} 1-0

[Event "Live Chess"]
[Site "Chess.com"]
[Date "2023.05.21"]
[Round "-"]
[White "hturner40"]
[Black "gmnorfolk"]
[Result "1-0"]
[WhiteElo "1817"]
[BlackElo "2115"]
[TimeControl "300"]
[EndTime "2:36:54 PDT"]
[Termination "hturner40 won by resignation"]

1. Nf3 {[%clk 0:04:57.3]} 1... d5 {[%clk 0:04:58.4]} 2. g3 {[%clk 0:04:55.6]}
2... c5 {[%clk 0:04:56.9]} 3. Bg2 {[%clk 0:04:54.2]} 3... Nc6 {[%clk 0:04:56.2]}
4. d4 {[%clk 0:04:53.2]} 4... e6 {[%clk 0:04:55.5]} 5. c4 {[%clk 0:04:50.2]}
5... cxd4 {[%clk 0:04:49.9]} 6. Nxd4 {[%clk 0:04:41.3]} 6... Nf6 {[%clk
0:04:47.9]} 7. Nc3 {[%clk 0:04:34.3]} 7... Bc5 {[%clk 0:04:27.8]} 8. Nxc6 {[%clk
0:04:14.3]} 8... bxc6 {[%clk 0:04:02.5]} 9. O-O {[%clk 0:03:47.6]} 9... O-O
{[%clk 0:04:00.6]} 10. Bg5 {[%clk 0:03:40]} 10... h6 {[%clk 0:03:58.8]} 11. Bf4
{[%clk 0:03:24.6]} 11... Bd6 {[%clk 0:03:53.1]} 12. Bxd6 {[%clk 0:03:17]} 12...
Qxd6 {[%clk 0:03:44.7]} 13. cxd5 {[%clk 0:03:15.1]} 13... cxd5 {[%clk
0:03:42.3]} 14. e4 {[%clk 0:03:14.1]} 14... Rb8 {[%clk 0:03:40.2]} 15. exd5
{[%clk 0:02:28.2]} 15... Rxb2 {[%clk 0:03:09.6]} 16. dxe6 {[%clk 0:02:23.6]}
16... Qxd1 {[%clk 0:03:07]} 17. Nxd1 {[%clk 0:02:21.9]} 17... Bxe6 {[%clk
0:03:05.2]} 18. Nxb2 {[%clk 0:02:18.5]} 18... Rb8 {[%clk 0:02:38.3]} 19. Nd3
{[%clk 0:02:11]} 19... Bc4 {[%clk 0:02:20.1]} 20. Rfd1 {[%clk 0:02:08.8]} 20...
g5 {[%clk 0:02:11.7]} 21. Ne5 {[%clk 0:01:53.3]} 1-0

[Event "Live Chess"]
[Site "Chess.com"]
[Date "2023.05.21"]
[Round "-"]
[White "MJMykh"]
[Black "YrrriKharkiv"]
[Result "0-1"]
[WhiteElo "1184"]
[BlackElo "2072"]
[TimeControl "300"]
[EndTime "2:36:56 PDT"]
[Termination "YrrriKharkiv won by checkmate"]

1. e4 {[%clk 0:04:58.5]} 1... e6 {[%clk 0:04:58.4]} 2. Nf3 {[%clk 0:04:57.1]}
2... d5 {[%clk 0:04:58]} 3. e5 {[%clk 0:04:54.9]} 3... c5 {[%clk 0:04:56.3]} 4.
Nc3 {[%clk 0:04:52.9]} 4... Nc6 {[%clk 0:04:54.5]} 5. Bb5 {[%clk 0:04:50.6]}
5... Bd7 {[%clk 0:04:52.6]} 6. Bxc6 {[%clk 0:04:47]} 6... bxc6 {[%clk
0:04:50.4]} 7. O-O {[%clk 0:04:46.1]} 7... Ne7 {[%clk 0:04:47.9]} 8. h3 {[%clk
0:04:44.8]} 8... h5 {[%clk 0:04:46.4]} 9. d3 {[%clk 0:04:43.1]} 9... Nf5 {[%clk
0:04:45.4]} 10. Bg5 {[%clk 0:04:41.6]} 10... Qb6 {[%clk 0:04:41.7]} 11. Rb1
{[%clk 0:04:29]} 11... Rb8 {[%clk 0:04:38.3]} 12. b3 {[%clk 0:04:26.8]} 12...
Qa5 {[%clk 0:04:31]} 13. Na4 {[%clk 0:04:22.8]} 13... Nd4 {[%clk 0:04:11]} 14.
Nxd4 {[%clk 0:04:20.2]} 14... cxd4 {[%clk 0:04:09.4]} 15. Qd2 {[%clk 0:04:13.6]}
15... Bb4 {[%clk 0:04:02.4]} 16. Qf4 {[%clk 0:04:03.3]} 16... c5 {[%clk
0:03:50.4]} 17. Nb2 {[%clk 0:03:54.3]} 17... Qxa2 {[%clk 0:03:42.2]} 18. c4
{[%clk 0:03:47.6]} 18... dxc3 {[%clk 0:03:34.8]} 19. Na4 {[%clk 0:03:35.9]}
19... Bxa4 {[%clk 0:03:09.5]} 20. bxa4 {[%clk 0:03:33.1]} 20... Qxa4 {[%clk
0:03:09.1]} 21. Ra1 {[%clk 0:03:25.4]} 21... Qd7 {[%clk 0:03:00]} 22. Ra2 {[%clk
0:03:15.3]} 22... a5 {[%clk 0:02:54.1]} 23. Rfa1 {[%clk 0:03:08.6]} 23... Qb5
{[%clk 0:02:50.7]} 24. Rd1 {[%clk 0:03:02.9]} 24... c4 {[%clk 0:02:42.3]} 25.
dxc4 {[%clk 0:03:01]} 25... Qxc4 {[%clk 0:02:39.7]} 26. Qxc4 {[%clk 0:03:00.2]}
26... dxc4 {[%clk 0:02:38.6]} 27. Rc2 {[%clk 0:02:56.7]} 27... O-O {[%clk
0:02:31.9]} 28. Bf4 {[%clk 0:02:51]} 28... Rfd8 {[%clk 0:02:29.3]} 29. Rxd8+
{[%clk 0:02:49.7]} 29... Rxd8 {[%clk 0:02:27.6]} 30. Kh2 {[%clk 0:02:46.5]}
30... f6 {[%clk 0:02:24.8]} 31. exf6 {[%clk 0:02:44.7]} 31... gxf6 {[%clk
0:02:23.6]} 32. g4 {[%clk 0:02:43.2]} 32... e5 {[%clk 0:02:20.3]} 33. Be3 {[%clk
0:02:41.4]} 33... hxg4 {[%clk 0:02:19.4]} 34. hxg4 {[%clk 0:02:40.9]} 34... Kf7
{[%clk 0:02:18.3]} 35. Kg3 {[%clk 0:02:40]} 35... Ke6 {[%clk 0:02:13.2]} 36. Kf3
{[%clk 0:02:37.4]} 36... Rh8 {[%clk 0:02:07.2]} 37. Ke4 {[%clk 0:02:33]} 37...
Rh4 {[%clk 0:02:01.2]} 38. f3 {[%clk 0:02:31.7]} 38... f5# {[%clk 0:01:58.8]}
0-1

[Event "Live Chess"]
[Site "Chess.com"]
[Date "2023.05.21"]
[Round "-"]
[White "Man-Del-Brot"]
[Black "RockTroll"]
[Result "0-1"]
[WhiteElo "1041"]
[BlackElo "2213"]
[TimeControl "300"]
[EndTime "2:36:57 PDT"]
[Termination "RockTroll won by resignation"]

1. d4 {[%clk 0:04:45.8]} 1... Nf6 {[%clk 0:04:56.8]} 2. Nf3 {[%clk 0:04:44.4]}
2... g6 {[%clk 0:04:56.4]} 3. Bf4 {[%clk 0:04:41]} 3... Bg7 {[%clk 0:04:55.9]}
4. e3 {[%clk 0:04:40]} 4... O-O {[%clk 0:04:55.5]} 5. Be2 {[%clk 0:04:33]} 5...
d6 {[%clk 0:04:55]} 6. c3 {[%clk 0:04:31.3]} 6... Nc6 {[%clk 0:04:54.5]} 7. Nbd2
{[%clk 0:04:28.6]} 7... Nd7 {[%clk 0:04:48.2]} 8. O-O {[%clk 0:04:26.1]} 8... e5
{[%clk 0:04:46.5]} 9. dxe5 {[%clk 0:04:24.1]} 9... dxe5 {[%clk 0:04:45.2]} 10.
Bg3 {[%clk 0:04:18.9]} 10... f5 {[%clk 0:04:41.3]} 11. h3 {[%clk 0:04:17.8]}
11... g5 {[%clk 0:04:27.6]} 12. Ne1 {[%clk 0:04:10.7]} 12... f4 {[%clk
0:04:25.5]} 13. exf4 {[%clk 0:04:09.1]} 13... exf4 {[%clk 0:04:22.9]} 14. Bc4+
{[%clk 0:04:04.6]} 14... Kh8 {[%clk 0:04:20.8]} 15. Bh2 {[%clk 0:04:03.1]} 15...
Nde5 {[%clk 0:04:12]} 16. Bb3 {[%clk 0:03:52.3]} 16... Bf5 {[%clk 0:03:27.8]}
17. Ndf3 {[%clk 0:03:37.8]} 17... Qf6 {[%clk 0:03:17.7]} 18. Nxe5 {[%clk
0:03:30]} 18... Nxe5 {[%clk 0:03:15.5]} 19. Nf3 {[%clk 0:03:16.4]} 19... Rad8
{[%clk 0:03:11.9]} 20. Qe1 {[%clk 0:02:09.8]} 20... Nxf3+ {[%clk 0:03:00.4]} 21.
gxf3 {[%clk 0:02:05.3]} 21... Rfe8 {[%clk 0:02:59.5]} 22. Qxe8+ {[%clk
0:01:48.1]} 22... Rxe8 {[%clk 0:02:57.8]} 23. Rfe1 {[%clk 0:01:36.4]} 23...
Rxe1+ {[%clk 0:02:42.2]} 24. Rxe1 {[%clk 0:01:34.7]} 24... Bf8 {[%clk
0:02:36.3]} 25. Kg2 {[%clk 0:01:27.7]} 25... Bc5 {[%clk 0:02:32.1]} 26. Rd1
{[%clk 0:01:13.3]} 26... Qh6 {[%clk 0:02:14.1]} 27. Rd5 {[%clk 0:01:02.5]} 27...
Qxh3+ {[%clk 0:02:10.6]} 28. Kg1 {[%clk 0:00:57.5]} 28... Bxf2+ {[%clk
0:02:06.7]} 0-1

[Event "Live Chess"]
[Site "Chess.com"]
[Date "2023.05.21"]
[Round "-"]
[White "Keithdfg"]
[Black "defenderalist"]
[Result "1-0"]
[WhiteElo "1700"]
[BlackElo "1639"]
[TimeControl "300"]
[EndTime "2:36:57 PDT"]
[Termination "Keithdfg won by resignation"]

1. Nf3 {[%clk 0:04:56.8]} 1... Nf6 {[%clk 0:04:58.3]} 2. d4 {[%clk 0:04:55.5]}
2... b6 {[%clk 0:04:57.6]} 3. Bf4 {[%clk 0:04:54.1]} 3... Bb7 {[%clk 0:04:56.7]}
4. e3 {[%clk 0:04:53.1]} 4... e6 {[%clk 0:04:54.8]} 5. Be2 {[%clk 0:04:51.7]}
5... h6 {[%clk 0:04:52.4]} 6. h3 {[%clk 0:04:50.5]} 6... g5 {[%clk 0:04:49.9]}
7. Bh2 {[%clk 0:04:48.7]} 7... Nc6 {[%clk 0:04:42.5]} 8. Nbd2 {[%clk 0:04:47.1]}
8... Bg7 {[%clk 0:04:41.2]} 9. c3 {[%clk 0:04:46]} 9... Qe7 {[%clk 0:04:39.6]}
10. a4 {[%clk 0:04:43.6]} 10... g4 {[%clk 0:04:32.6]} 11. hxg4 {[%clk
0:04:42.2]} 11... Nxg4 {[%clk 0:04:31.8]} 12. Bg3 {[%clk 0:04:42]} 12... h5
{[%clk 0:04:30.5]} 13. Nc4 {[%clk 0:04:33.7]} 13... f5 {[%clk 0:04:23.6]} 14. a5
{[%clk 0:04:31.5]} 14... bxa5 {[%clk 0:04:13.2]} 15. Nxa5 {[%clk 0:04:28.7]}
15... Nxa5 {[%clk 0:04:12.3]} 16. Rxa5 {[%clk 0:04:27.6]} 16... Bxf3 {[%clk
0:04:09.9]} 17. gxf3 {[%clk 0:04:25]} 17... Nf6 {[%clk 0:04:03.6]} 18. Qa1
{[%clk 0:04:22.6]} 18... h4 {[%clk 0:03:59]} 19. Rxh4 {[%clk 0:04:19.1]} 19...
Rxh4 {[%clk 0:03:51.1]} 20. Bxh4 {[%clk 0:04:17.5]} 20... Rb8 {[%clk 0:03:50]}
21. b4 {[%clk 0:04:15.7]} 21... Qf7 {[%clk 0:03:37.4]} 22. Bxf6 {[%clk 0:04:14]}
22... Bxf6 {[%clk 0:03:35.9]} 23. f4 {[%clk 0:04:13.1]} 23... Ke7 {[%clk
0:03:31]} 24. Rxa7 {[%clk 0:04:11.6]} 24... Rh8 {[%clk 0:03:29]} 25. Kd2 {[%clk
0:04:08.6]} 25... Rh2 {[%clk 0:03:19.8]} 26. Qg1 {[%clk 0:04:06.1]} 26... Qh5
{[%clk 0:03:18]} 27. Bxh5 {[%clk 0:04:04.1]} 1-0

[Event "Live Chess"]
[Site "Chess.com"]
[Date "2023.05.21"]
[Round "-"]
[White "LiamBellwood"]
[Black "yeetpizza74"]
[Result "1-0"]
[WhiteElo "1958"]
[BlackElo "481"]
[TimeControl "300"]
[EndTime "2:37:17 PDT"]
[Termination "LiamBellwood won by checkmate"]

1. d4 {[%clk 0:04:59.4]} 1... e5 {[%clk 0:04:57.9]} 2. Nc3 {[%clk 0:04:59.3]}
2... Nc6 {[%clk 0:04:54.5]} 3. d5 {[%clk 0:04:58.5]} 3... Nb4 {[%clk 0:04:51.5]}
4. e4 {[%clk 0:04:58.4]} 4... d6 {[%clk 0:04:48.4]} 5. f4 {[%clk 0:04:57.4]}
5... exf4 {[%clk 0:04:46.9]} 6. Bxf4 {[%clk 0:04:57.3]} 6... Nf6 {[%clk
0:04:45.5]} 7. Nf3 {[%clk 0:04:56.5]} 7... Bg4 {[%clk 0:04:41.1]} 8. Bd3 {[%clk
0:04:53.2]} 8... Nxd3+ {[%clk 0:04:39.2]} 9. Qxd3 {[%clk 0:04:51.7]} 9... c6
{[%clk 0:04:27.9]} 10. O-O {[%clk 0:04:48.8]} 10... cxd5 {[%clk 0:04:24.6]} 11.
exd5 {[%clk 0:04:48.7]} 11... Bxf3 {[%clk 0:04:14.9]} 12. Qxf3 {[%clk
0:04:42.4]} 12... Be7 {[%clk 0:04:12.5]} 13. Ne4 {[%clk 0:04:41.2]} 13... Nxe4
{[%clk 0:04:10.3]} 14. Qxe4 {[%clk 0:04:41.1]} 14... O-O {[%clk 0:04:08.5]} 15.
Rae1 {[%clk 0:04:38.3]} 15... Re8 {[%clk 0:04:06.4]} 16. Qf5 {[%clk 0:04:35.4]}
16... Bh4 {[%clk 0:04:01]} 17. Rxe8+ {[%clk 0:04:31.1]} 17... Qxe8 {[%clk
0:03:58.9]} 18. g3 {[%clk 0:04:27.4]} 18... Be7 {[%clk 0:03:49.8]} 19. Re1
{[%clk 0:04:26.5]} 19... Rc8 {[%clk 0:03:43.7]} 20. Bxd6 {[%clk 0:04:24.6]}
20... Rxc2 {[%clk 0:03:34]} 21. Qxc2 {[%clk 0:04:21.1]} 21... Qd7 {[%clk
0:03:27.9]} 22. Rxe7 {[%clk 0:04:18.3]} 22... h6 {[%clk 0:03:23.6]} 23. Rxd7
{[%clk 0:04:16.8]} 23... a6 {[%clk 0:03:18.1]} 24. Qf5 {[%clk 0:04:16.2]} 24...
b6 {[%clk 0:03:13.4]} 25. Rd8# {[%clk 0:04:15.1]} 1-0

[Event "Live Chess"]
[Site "Chess.com"]
[Date "2023.05.21"]
[Round "-"]
[White "VovaOvchar1990"]
[Black "Reggie016"]
[Result "0-1"]
[WhiteElo "1222"]
[BlackElo "1136"]
[TimeControl "300"]
[EndTime "2:37:32 PDT"]
[Termination "Reggie016 won by resignation"]

1. e4 {[%clk 0:04:57.2]} 1... e6 {[%clk 0:04:59.3]} 2. Bc4 {[%clk 0:04:55.3]}
2... d5 {[%clk 0:04:58.1]} 3. exd5 {[%clk 0:04:54.1]} 3... exd5 {[%clk 0:04:58]}
4. Bb3 {[%clk 0:04:53.3]} 4... c5 {[%clk 0:04:57.4]} 5. c3 {[%clk 0:04:51.9]}
5... Nc6 {[%clk 0:04:57.1]} 6. Nf3 {[%clk 0:04:49.4]} 6... Nf6 {[%clk
0:04:56.2]} 7. O-O {[%clk 0:04:46.8]} 7... Bg4 {[%clk 0:04:55.9]} 8. h3 {[%clk
0:04:44.8]} 8... Bh5 {[%clk 0:04:53.2]} 9. d3 {[%clk 0:04:35.4]} 9... Be7 {[%clk
0:04:48.3]} 10. Nbd2 {[%clk 0:04:32.8]} 10... O-O {[%clk 0:04:47.7]} 11. Qc2
{[%clk 0:04:29.2]} 11... Bg6 {[%clk 0:04:44.4]} 12. Qd1 {[%clk 0:04:22.6]} 12...
Re8 {[%clk 0:04:42.5]} 13. Re1 {[%clk 0:04:06.5]} 13... Bxd3 {[%clk 0:04:39.3]}
14. Nf1 {[%clk 0:04:01.1]} 14... c4 {[%clk 0:04:33.3]} 15. Bc2 {[%clk
0:03:52.1]} 15... Bxc2 {[%clk 0:04:31.1]} 16. Qxc2 {[%clk 0:03:50.1]} 16... Qc7
{[%clk 0:04:23.7]} 17. Ng5 {[%clk 0:03:45.2]} 17... g6 {[%clk 0:04:08.5]} 18.
Qb3 {[%clk 0:03:26.3]} 18... cxb3 {[%clk 0:04:06.9]} 19. axb3 {[%clk 0:03:25.2]}
19... Bc5 {[%clk 0:04:05.4]} 20. b4 {[%clk 0:03:23.4]} 20... Bb6 {[%clk
0:04:04]} 21. Rxe8+ {[%clk 0:03:19.6]} 21... Rxe8 {[%clk 0:04:02.6]} 22. Be3
{[%clk 0:03:16]} 22... Bxe3 {[%clk 0:04:00.2]} 23. Nxe3 {[%clk 0:03:14.9]} 23...
d4 {[%clk 0:03:56.1]} 24. Nc4 {[%clk 0:03:08.3]} 24... dxc3 {[%clk 0:03:52.7]}
25. bxc3 {[%clk 0:03:06.8]} 25... Ne5 {[%clk 0:03:49.3]} 26. Nxe5 {[%clk
0:03:02.3]} 26... Rxe5 {[%clk 0:03:49.2]} 27. Nf3 {[%clk 0:03:01.7]} 27... Re2
{[%clk 0:03:47]} 28. Rxa7 {[%clk 0:02:57.9]} 28... Qxc3 {[%clk 0:03:44.1]} 29.
Rxb7 {[%clk 0:02:54.4]} 29... Ne4 {[%clk 0:03:31.7]} 30. Re7 {[%clk 0:02:40.6]}
30... Qxb4 {[%clk 0:03:04]} 31. Ng5 {[%clk 0:02:31.9]} 31... Re1+ {[%clk
0:02:53.4]} 0-1